bitfinex/quotes_ETHUSD_20241120
["timestamp","ask_amount","ask_price","bid_price","bid_amount"]
[1732065236370,3.97784,3110.2,3109.6,0.7859]
[1732065236684,3.21543,3110.0,3109.8,0.04374619]
[1732065236980,7.19316,3110.2,3109.6,0.7859]
[1732065237182,3.97784,3110.2,3109.6,0.7859]
[1732065237391,3.97784,3110.2,3109.7,0.04374619]
[1732065238077,0.7626,3110.5,3109.7,0.04374619]
[1732065238255,3.21504,3110.4,3109.8,0.7859]
[1732065239685,3.21485,3110.6,3109.8,0.7859]
[1732065239889,3.97723,3110.8,3109.9,0.0643072]
[1732065239890,3.21463,3110.8,3109.9,0.0643072]
[1732065240049,3.21463,3110.8,3110.0,0.7859]
[1732065240254,3.21463,3110.8,3110.0,0.82964146]
[1732065240465,3.857533,3110.8,3110.0,0.82964146]
[1732065240679,3.7626,3111.1,3110.0,0.82964146]
[1732065240994,3.21492,3110.5,3110.0,0.82964146]
[1732065241288,3.21509,3110.4,3110.0,0.7859]
[1732065241602,3.2152,3110.3,3109.7,1.1065]
[1732065241745,3.612772,3110.4,3110.1,0.04370086]
[1732065241952,3.21502,3110.4,3109.7,1.1065]
[1732065242243,3.21518,3110.3,3110.2,0.04370086]
[1732065242448,3.2153,3110.2,3109.7,0.7859]
[1732065242906,3.21499,3110.5,3109.7,0.7859]
[1732065243258,6.43,3110.5,3109.7,0.7859]
[1732065243457,3.21499,3110.5,3109.7,0.7859]
[1732065243663,3.21484,3110.6,3109.7,0.7859]
[1732065243849,3.21484,3110.6,3109.8,0.7859]
[1732065244067,3.21462,3110.8,3109.8,1.11875105]
[1732065244269,3.21462,3110.8,3109.9,0.8502082]
[1732065245073,3.21462,3110.8,3109.9,0.7859]
[1732065245683,3.21444,3111.0,3109.9,1.11869233]
[1732065245891,3.912144,3111.0,3110.1,0.7859]
[1732065246117,3.21444,3111.0,3110.1,0.7859]
[1732065246313,3.2143,3111.1,3110.2,0.0643033]
[1732065246529,3.2143,3111.1,3110.3,0.7859]
[1732065246718,3.53573,3111.1,3110.4,0.7859]
[1732065246870,3.2143,3111.1,3110.4,0.7859]
[1732065247318,3.2143,3111.1,3110.5,0.04370086]
[1732065247499,3.2143,3111.1,3110.4,0.7859]
[1732065249290,3.2144,3111.0,3110.4,0.7859]
[1732065250587,3.21452,3110.9,3110.4,0.7859]
[1732065252195,3.53573,3111.1,3110.4,0.7859]
[1732065254903,3.2144,3111.0,3110.4,0.7859]
[1732065255442,3.53573,3111.1,3110.4,0.7859]
[1732065255941,6.75012,3111.1,3110.4,0.7859]
[1732065256443,3.2144,3111.0,3110.4,0.7859]
[1732065258036,3.53581,3111.1,3110.4,0.7859]
[1732065259828,3.21442,3111.0,3110.4,0.7859]
[1732065260026,3.21453,3110.9,3110.4,0.7859]
[1732065263647,3.21436,3111.1,3110.4,0.7859]
[1732065264814,3.21442,3111.0,3110.4,0.7859]
[1732065265554,3.21424,3111.2,3110.4,0.7859]
[1732065265760,3.21398,3111.4,3110.4,0.7859]
[1732065265931,0.8027,3111.9,3110.5,0.38489268]
[1732065266121,3.2138,3111.6,3110.6,0.8118]
[1732065266319,3.21394,3111.5,3110.7,0.8118]
[1732065266509,3.21394,3111.5,3110.7,0.85542817]
[1732065268695,3.21394,3111.5,3110.7,0.8118]
[1732065271872,3.21399,3111.4,3110.8,0.04362817]
[1732065272075,3.21399,3111.4,3110.9,0.8118]
[1732065272588,3.21399,3111.4,3111.0,0.04362817]
[1732065272966,3.21399,3111.4,3110.9,0.8118]
[1732065284347,3.2138,3111.6,3110.9,0.8118]
[1732065284890,3.21391,3111.5,3110.9,0.8118]
[1732065287478,3.8968442,3111.5,3110.9,0.8118]
[1732065287687,3.21391,3111.5,3110.9,0.8118]
[1732065289267,3.21401,3111.4,3110.9,0.8118]
[1732065289478,3.21424,3111.2,3110.9,0.8118]
[1732065289678,0.7531,3111.4,3110.7,0.7882]
[1732065289869,3.21386,3111.6,3110.8,0.04358854]
[1732065290068,0.396696,3111.4,3110.9,0.7882]
[1732065290297,3.21386,3111.6,3110.9,0.7882]
[1732065290663,3.21398,3111.4,3110.9,0.7882]
[1732065294717,6.21338,3112.0,3110.9,0.7982]
[1732065294718,3.21361,3111.8,3110.9,0.7982]
[1732065295208,3.21343,3112.0,3111.1,0.7882]
[1732065295415,3.9663,3112.2,3111.2,0.7882]
[1732065295562,3.21327,3112.1,3111.3,0.7882]
[1732065295874,3.21328,3112.1,3111.4,1.12295542]
[1732065296061,3.2132,3112.2,3111.5,0.7882]
[1732065296262,3.2132,3112.2,3111.6,0.23461254]
[1732065296918,3.2132,3112.2,3111.7,0.7882]
[1732065297797,3.2133,3112.1,3111.7,0.7882]
[1732065298184,3.2133,3112.1,3111.8,0.043497]
[1732065298586,3.2133,3112.1,3111.7,0.7882]
[1732065298982,3.2132,3112.2,3111.7,0.7882]
[1732065299889,3.2132,3112.2,3111.8,0.043497]
[1732065300082,3.2132,3112.2,3111.7,0.7882]
[1732065300892,3.96588,3112.6,3111.7,0.7882]
[1732065300893,3.21357,3111.8,3111.7,0.7882]
[1732065301094,3.21357,3111.8,3111.7,0.04201409]
[1732065301297,3.21374,3111.7,3111.3,0.7882]
[1732065301612,3.21378,3111.6,3111.4,0.04201409]
[1732065302116,3.21378,3111.6,3111.5,0.04201597]
[1732065302483,3.21378,3111.6,3111.3,0.7882]
[1732065302683,3.21378,3111.6,3111.4,0.04201597]
[1732065303323,3.21357,3111.8,3111.4,0.04201597]
[1732065303502,3.21369,3111.7,3111.4,0.04201597]
[1732065303815,0.7531,3112.1,3111.3,0.7882]
[1732065304032,3.21297,3112.4,3111.4,0.55771985]
[1732065304363,3.21275,3112.6,3111.7,0.7882]
[1732065304561,3.21275,3112.6,3111.6,0.3206]
[1732065304562,0.621275,3112.6,3111.9,0.7882]
[1732065304761,3.21304,3112.4,3111.9,0.7882]
[1732065305666,3.21308,3112.3,3111.9,0.7882]
[1732065305971,3.21304,3112.4,3111.9,0.7882]
[1732065306120,3.21307,3112.3,3111.9,0.7882]
[1732065306459,0.7531,3112.2,3111.5,0.7882]
[1732065306667,3.21354,3111.9,3111.5,0.7882]
[1732065306967,3.21367,3111.7,3111.6,0.04201407]
[1732065307522,3.21367,3111.7,3111.2,0.7882]
[1732065307867,3.21398,3111.4,3111.3,0.04201407]
[1732065308239,3.21398,3111.4,3111.2,0.7882]
[1732065308763,3.21398,3111.4,3111.3,0.04201407]
[1732065308966,4.178152,3111.4,3111.3,0.04201407]
[1732065309168,4.178152,3111.4,3110.7,0.8141]
[1732065309463,3.21413,3111.3,3110.7,0.8141]
[1732065309823,3.21381,3111.6,3110.7,0.8141]
[1732065310075,3.21401,3111.4,3110.7,0.8141]
[1732065310222,3.21417,3111.3,3110.8,0.0406136]
[1732065310422,3.21417,3111.3,3110.7,0.8141]
[1732065310860,3.21417,3111.3,3110.8,0.0406136]
[1732065311061,3.21417,3111.3,3110.7,0.8141]
[1732065311427,3.21417,3111.3,3110.8,0.0406136]
[1732065311622,3.98478,3111.7,3110.7,0.8141]
[1732065311852,0.396632,3112.1,3110.3,0.35399561]
[1732065311853,3.0,3112.0,3110.9,0.0406136]
[1732065312023,0.804,3112.4,3111.0,0.7915]
[1732065312220,0.804,3112.4,3111.2,0.01]
[1732065312221,3.21295,3112.4,3111.2,0.01]
[1732065312459,3.21295,3112.4,3111.3,0.7815]
[1732065312663,3.21295,3112.4,3111.4,0.06426972]
[1732065312822,3.21278,3112.6,3111.5,0.7815]
[1732065313022,3.614538,3112.5,3111.5,0.7815]
[1732065313270,3.21307,3112.3,3111.5,0.7815]
[1732065313626,3.2132,3112.2,3111.6,0.0406136]
[1732065314123,0.3614698,3112.3,3111.6,0.0406136]
[1732065314435,3.21313,3112.3,3111.6,0.0406136]
[1732065315327,6.42603,3112.4,3111.7,0.7815]
[1732065315535,3.21298,3112.4,3111.8,0.04053531]
[1732065316065,3.21298,3112.4,3111.7,0.7815]
[1732065316950,3.21298,3112.4,3111.8,0.04053248]
[1732065317351,3.21298,3112.4,3111.7,0.7815]
[1732065317673,6.42603,3112.4,3111.7,0.7815]
[1732065317873,3.21298,3112.4,3111.8,0.04052494]
[1732065318173,3.855583,3112.4,3111.7,0.7815]
[1732065318488,3.855583,3112.4,3111.4,0.7815]
[1732065318489,0.804,3112.3,3111.4,0.7815]
[1732065318644,3.0,3112.8,3111.1,0.7815]
[1732065318645,3.21378,3111.6,3111.1,0.7815]
[1732065318847,3.21354,3111.9,3111.1,0.7815]
[1732065319441,3.21357,3111.8,3111.1,0.7815]
[1732065319671,3.21344,3112.0,3111.1,0.7815]
[1732065319876,3.21329,3112.1,3111.1,0.7815]
[1732065320033,3.21329,3112.1,3111.0,0.01]
[1732065320034,3.21329,3112.1,3111.3,0.7815]
[1732065320432,3.21336,3112.0,3111.3,0.7815]
[1732065320648,3.21329,3112.1,3111.4,0.03919705]
[1732065320846,3.21337,3112.0,3111.3,0.7815]
[1732065321047,3.21375,3111.7,3111.3,0.7815]
[1732065321279,3.21375,3111.7,3111.4,0.03919705]
[1732065321562,3.21378,3111.6,3111.3,0.7815]
[1732065321952,3.21378,3111.6,3111.4,0.03920027]
[1732065322174,3.21388,3111.5,3111.4,0.03920027]
[1732065322476,3.21388,3111.5,3111.3,0.7815]
[1732065322975,3.21388,3111.5,3111.4,0.03920027]
[1732065323360,3.21388,3111.5,3110.5,0.7815]
[1732065323679,3.21415,3111.3,3110.5,0.7815]
[1732065324186,3.2142,3111.2,3110.6,0.03920027]
[1732065324676,3.2142,3111.2,3110.5,0.7815]
[1732065325682,3.21415,3111.3,3110.5,0.7815]
[1732065326037,3.21424,3111.2,3110.6,0.03934461]
[1732065326834,3.21451,3110.9,3110.6,0.03934461]
[1732065327152,3.21451,3110.9,3110.5,0.7815]
[1732065327539,3.21413,3111.3,3110.6,0.03934272]
[1732065327772,3.2139,3111.5,3110.7,0.7927]
[1732065328150,3.2139,3111.5,3110.8,0.03934839]
[1732065328352,3.2139,3111.5,3110.7,0.7927]
[1732065328353,3.21405,3111.4,3110.7,0.7927]
[1732065328565,3.2139,3111.5,3110.8,0.03934839]
[1732065328987,3.2139,3111.5,3110.7,0.7927]
[1732065329483,3.21399,3111.4,3110.8,0.03934839]
[1732065330278,3.21409,3111.3,3110.8,0.03934839]
[1732065330572,3.21399,3111.4,3110.7,0.7927]
[1732065330573,3.21419,3111.2,3110.7,0.7927]
[1732065330773,3.21399,3111.4,3110.7,0.7927]
[1732065331283,3.21409,3111.3,3110.8,0.03934839]
[1732065331591,3.21409,3111.3,3110.7,0.7927]
[1732065331735,3.21409,3111.3,3110.9,0.03934839]
[1732065331939,3.21409,3111.3,3110.7,0.7927]
[1732065332140,3.21409,3111.3,3110.8,0.03934839]
[1732065332383,3.21409,3111.3,3110.7,0.7927]
[1732065332572,3.21419,3111.2,3110.9,0.03934839]
[1732065332878,3.21419,3111.2,3110.7,0.7927]
[1732065333286,3.21419,3111.2,3110.8,0.03934839]
[1732065333588,3.21419,3111.2,3110.7,0.7927]
[1732065333785,3.21419,3111.2,3110.9,0.03934839]
[1732065333944,3.21419,3111.2,3110.7,0.7927]
[1732065334146,3.21419,3111.2,3110.8,0.03934839]
[1732065334347,3.21419,3111.2,3110.7,0.7927]
[1732065334537,3.21429,3111.1,3110.8,0.03934839]
[1732065334757,3.2145,3110.9,3110.0,0.7927]
[1732065334942,3.2145,3110.9,3110.0,1.02020468]
[1732065335481,3.21481,3110.6,3110.0,1.02020468]
[1732065335680,3.21481,3110.6,3110.0,0.7927]
[1732065335853,3.21481,3110.6,3110.1,0.03936348]
[1732065337543,3.21481,3110.6,3110.1,0.35996348]
[1732065338481,3.21481,3110.6,3110.2,0.03936348]
[1732065339345,3.21481,3110.6,3110.1,0.3206]
[1732065339551,3.21498,3110.5,3110.2,0.03936348]
[1732065340382,3.21498,3110.5,3110.0,0.7927]
[1732065340565,3.21498,3110.5,3110.3,0.03936348]
[1732065340771,3.21498,3110.5,3110.0,0.7927]
[1732065341280,3.21498,3110.5,3110.1,0.03936348]
[1732065341449,3.2144,3111.0,3110.1,0.03936348]
[1732065341646,0.32144,3110.9,3110.2,0.7553]
[1732065341845,3.21432,3111.1,3110.2,0.7553]
[1732065342070,3.21419,3111.2,3110.4,0.7553]
[1732065342071,3.2144,3111.0,3110.4,0.7553]
[1732065342486,3.21447,3111.0,3110.4,0.7553]
[1732065342686,3.21447,3111.0,3110.5,0.03936348]
[1732065342984,3.21447,3111.0,3110.4,0.7553]
[1732065343400,3.21457,3110.9,3110.4,0.7553]
[1732065343550,3.21447,3111.0,3110.4,0.7553]
[1732065343761,0.8136,3111.4,3110.4,0.7553]
[1732065344087,3.21489,3110.6,3110.2,0.7553]
[1732065344586,3.21489,3110.6,3110.3,0.03936348]
[1732065344967,3.21489,3110.6,3110.2,0.7553]
[1732065345171,6.4298,3110.6,3110.2,0.7553]
[1732065345478,3.21489,3110.6,3110.3,0.03938991]
[1732065345650,3.21502,3110.4,3110.3,0.03938991]
[1732065345855,3.21502,3110.4,3110.2,0.7553]
[1732065346262,3.21502,3110.4,3110.3,0.03938991]
[1732065346557,3.21502,3110.4,3110.2,0.7553]
[1732065346782,3.21502,3110.4,3110.3,0.03943804]
[1732065346986,3.8982959,3110.4,3110.3,0.03943804]
[1732065347192,3.21528,3110.2,3109.8,0.7553]
[1732065347678,3.21545,3110.0,3109.8,0.7553]
[1732065347879,3.21545,3110.0,3109.3,0.7553]
[1732065348088,3.21572,3109.8,3109.3,0.7553]
[1732065348290,3.21572,3109.8,3109.4,0.03946352]
[1732065348493,3.21572,3109.8,3109.3,0.7553]
[1732065348669,3.2159,3109.6,3109.3,0.7553]
[1732065348993,3.2159,3109.6,3109.4,0.03946352]
[1732065349192,0.8136,3110.1,3109.4,0.03946352]
[1732065349365,3.21592,3109.6,3109.3,0.7553]
[1732065350460,3.21552,3110.0,3109.4,0.03946352]
[1732065350759,3.21552,3110.0,3109.3,0.7553]
[1732065350954,3.21552,3110.0,3109.4,0.03946352]
[1732065351179,3.21552,3110.0,3109.3,0.7553]
[1732065351592,3.21552,3110.0,3109.4,0.03946352]
[1732065351865,3.21552,3110.0,3109.3,0.7553]
[1732065352208,3.21555,3109.9,3109.3,0.7553]
[1732065352697,3.21555,3109.9,3109.4,0.03946352]
[1732065353962,3.21582,3109.7,3109.4,0.03946352]
[1732065354210,3.21582,3109.7,3109.3,0.7553]
[1732065354211,4.00996,3109.9,3109.3,0.7553]
[1732065354498,4.00994,3109.9,3109.3,0.7553]
[1732065354671,4.00994,3109.9,3109.4,0.03946352]
[1732065355203,0.7944,3109.9,3109.4,0.03946352]
[1732065355495,3.21535,3110.1,3109.5,0.03946352]
[1732065355663,3.21535,3110.1,3109.3,0.7553]
[1732065356076,3.21535,3110.1,3109.4,0.03946352]
[1732065356296,3.21545,3110.0,3109.3,0.7553]
[1732065356928,3.21554,3109.9,3109.3,0.7553]
[1732065357301,3.21585,3109.6,3109.3,0.7553]
[1732065357504,3.21595,3109.5,3109.4,0.03954189]
[1732065358018,0.7944,3109.8,3108.5,3.33359739]
[1732065358019,3.21628,3109.2,3108.5,0.8035]
[1732065358481,3.21628,3109.2,3108.6,0.03961649]
[1732065358677,3.21638,3109.1,3108.6,0.03961649]
[1732065359074,3.21665,3108.9,3108.6,0.03961649]
[1732065359282,3.21665,3108.9,3108.5,0.8035]
[1732065359906,3.21639,3109.1,3108.5,0.8035]
[1732065360066,3.21667,3108.8,3108.5,0.8035]
[1732065360271,1.180341,3109.3,3108.1,1.18232213]
[1732065360272,3.21678,3108.7,3108.1,1.18232213]
[1732065360583,3.21678,3108.7,3108.2,0.03969395]
[1732065360787,3.21651,3109.0,3108.2,0.03969395]
[1732065361086,3.21677,3108.8,3108.2,0.03969395]
[1732065361407,3.21678,3108.7,3108.1,0.8035]
[1732065361710,3.21678,3108.7,3108.1,1.18385]
[1732065362020,3.21678,3108.7,3108.2,0.03970624]
[1732065362399,3.21696,3108.6,3108.2,0.03970624]
[1732065362599,0.7944,3108.8,3108.2,0.03970624]
[1732065362784,4.01109,3108.8,3108.2,0.03970624]
[1732065363130,3.2169,3108.6,3108.1,0.8035]
[1732065363575,4.01109,3108.8,3108.1,0.8035]
[1732065363769,0.7944,3108.8,3108.1,0.8035]
[1732065364013,4.01045,3109.4,3108.2,0.06434743]
[1732065364224,4.01045,3109.4,3108.3,0.8035]
[1732065364526,3.21585,3109.6,3108.4,0.86783601]
[1732065364700,3.21585,3109.6,3108.6,0.8035]
[1732065365213,3.21585,3109.6,3108.7,0.03973554]
[1732065365403,3.21595,3109.5,3108.7,0.03973554]
[1732065365769,3.2158,3109.7,3108.7,0.03973554]
[1732065366014,4.01008,3109.8,3108.7,0.03973554]
[1732065366175,3.21551,3110.0,3108.8,0.8035]
[1732065366380,3.21529,3110.2,3108.8,0.8035]
[1732065366610,0.35785329,3110.2,3109.0,0.8035]
[1732065366780,3.21575,3109.7,3109.0,0.8035]
[1732065367106,3.21535,3110.1,3109.0,0.8035]
[1732065367293,3.21546,3110.0,3109.1,0.03964955]
[1732065367470,3.536995,3110.0,3109.1,0.03964955]
[1732065367676,3.21586,3109.6,3109.1,0.03964955]
[1732065367996,3.21553,3109.9,3109.1,0.03964955]
[1732065368172,0.7944,3109.9,3109.1,0.03964955]
[1732065368371,3.21616,3109.3,3108.7,0.8035]
[1732065368600,3.21616,3109.3,3108.8,0.03968545]
[1732065368977,3.21616,3109.3,3108.7,0.8035]
[1732065369720,3.21632,3109.2,3108.7,0.8035]
[1732065369902,3.21632,3109.2,3108.8,0.03968545]
[1732065370219,3.21632,3109.2,3108.7,0.8035]
[1732065370618,3.21616,3109.3,3108.7,0.8035]
[1732065370778,3.21596,3109.5,3108.8,0.03972418]
[1732065370974,3.21578,3109.7,3108.8,0.8271]
[1732065371179,3.21578,3109.7,3108.9,0.23673169]
[1732065371180,3.21588,3109.6,3108.9,0.23673169]
[1732065371417,3.21588,3109.6,3108.8,0.8271]
[1732065371418,3.21588,3109.6,3109.0,0.0397204]
[1732065371720,3.21596,3109.5,3109.0,0.0397204]
[1732065371889,3.21596,3109.5,3108.8,0.8271]
[1732065371890,3.21626,3109.2,3108.8,0.8271]
[1732065372313,3.21626,3109.2,3108.9,0.0397204]
[1732065372479,3.21626,3109.2,3108.8,0.8271]
[1732065372676,3.2164,3109.1,3108.8,0.8271]
[1732065373304,3.21655,3109.0,3108.4,0.8271]
[1732065373693,3.21655,3109.0,3108.5,0.0397204]
[1732065374090,3.21655,3109.0,3108.4,0.8271]
[1732065374297,3.21655,3109.0,3108.6,0.0397204]
[1732065374589,3.21655,3109.0,3107.9,0.46862297]
[1732065374590,6.43353,3108.8,3107.9,0.8271]
[1732065374811,3.21676,3108.8,3107.9,0.8271]
[1732065375189,3.21678,3108.7,3108.0,0.0397204]
[1732065375516,3.21676,3108.8,3108.0,0.0397204]
[1732065375820,3.21676,3108.8,3108.0,0.3603204]
[1732065376022,3.21678,3108.7,3108.0,0.3603204]
[1732065376229,3.21676,3108.8,3108.0,0.3206]
[1732065376697,3.21676,3108.8,3108.1,0.0397204]
[1732065376897,3.860084,3108.8,3108.1,0.0397204]
[1732065377510,3.860084,3108.8,3108.0,0.3206]
[1732065377685,3.860084,3108.8,3108.2,0.0397204]
[1732065377881,3.21676,3108.8,3107.9,0.8271]
[1732065378093,3.21676,3108.8,3108.3,0.0397204]
[1732065378299,3.21676,3108.8,3107.9,0.8271]
[1732065378525,0.8301,3108.7,3107.9,0.8271]
[1732065378894,3.21651,3109.0,3108.0,0.0397204]
[1732065379096,3.21651,3109.0,3108.1,0.8271]
[1732065379299,3.621171,3109.0,3108.1,0.8271]
[1732065379494,3.621171,3109.0,3108.2,0.03979977]
[1732065380028,3.21657,3108.9,3108.3,0.23780773]
[1732065380179,3.21657,3108.9,3108.4,0.23780773]
[1732065380381,3.21629,3109.2,3108.5,0.23772817]
[1732065380704,0.44148074,3109.6,3108.7,0.8271]
[1732065381009,3.21612,3109.4,3108.7,0.8271]
[1732065381321,3.21634,3109.2,3108.8,0.03984135]
[1732065381750,3.21634,3109.2,3108.4,0.8271]
[1732065382025,3.21634,3109.2,3108.5,0.03984135]
[1732065382325,3.21647,3109.0,3108.5,0.03984135]
[1732065382729,3.21675,3108.8,3108.5,0.03984135]
[1732065382903,3.21675,3108.8,3108.4,0.8271]
[1732065383104,3.21675,3108.8,3108.6,0.03980733]
[1732065383306,3.21675,3108.8,3108.4,0.8271]
[1732065383635,0.643322,3108.8,3108.1,0.8271]
[1732065383833,3.21664,3108.9,3108.1,0.8271]
[1732065384132,3.21679,3108.7,3108.2,0.03980733]
[1732065384477,3.21679,3108.7,3108.1,0.8271]
[1732065384786,3.21664,3108.9,3108.2,0.03984514]
[1732065384992,3.21668,3108.8,3108.1,0.8271]
[1732065385222,4.04648,3109.1,3108.2,0.03984514]
[1732065385488,3.21618,3109.3,3108.3,0.7836]
[1732065385837,3.5513425,3109.5,3108.5,0.7836]
[1732065386137,3.99367,3109.7,3108.5,0.7836]
[1732065386343,7.608857,3109.7,3108.6,0.33537563]
[1732065386521,3.21585,3109.6,3108.7,0.7836]
[1732065386722,3.21585,3109.6,3108.7,1.11897563]
[1732065386922,3.9767387,3109.6,3108.7,1.11897563]
[1732065387087,3.9767387,3109.6,3108.7,0.7836]
[1732065387292,3.21595,3109.5,3108.7,0.7836]
[1732065387513,3.21595,3109.5,3108.7,1.11897563]
[1732065387839,0.7608887,3109.6,3108.8,0.03984703]
[1732065388045,0.7779,3109.7,3108.8,0.03984703]
[1732065388197,3.21586,3109.6,3108.8,0.03984703]
[1732065388399,3.21606,3109.4,3108.8,0.03984703]
[1732065388909,3.21596,3109.5,3108.7,0.7836]
[1732065389245,3.21568,3109.8,3108.8,0.03984703]
[1732065389408,3.21568,3109.8,3108.9,0.8128]
[1732065389798,3.21568,3109.8,3109.0,0.03979883]
[1732065390411,3.21575,3109.7,3109.0,0.03979883]
[1732065391549,3.21585,3109.6,3109.0,0.03979883]
[1732065391936,3.21605,3109.4,3109.0,0.03979883]
[1732065393446,3.21565,3109.8,3109.0,0.03979883]
[1732065393773,3.21573,3109.8,3108.9,0.8128]
[1732065393975,3.21573,3109.8,3108.9,1.14811608]
[1732065394130,3.21573,3109.8,3109.1,0.8128]
[1732065394855,3.21596,3109.5,3109.2,0.03971472]
[1732065395244,3.21606,3109.4,3109.2,0.03971472]
[1732065395656,3.21625,3109.3,3108.8,0.8128]
[1732065396871,4.00346,3109.5,3108.8,0.8128]
[1732065397082,3.21606,3109.4,3108.8,0.8128]
[1732065397351,3.21555,3109.9,3108.8,1.1337]
[1732065397591,3.21555,3109.9,3108.9,0.8128]
[1732065397739,3.21555,3109.9,3109.0,0.8128]
[1732065397940,6.43118,3109.9,3109.0,0.8128]
[1732065398259,3.21566,3109.8,3109.0,0.8128]
[1732065398465,3.21555,3109.9,3109.0,0.8128]
[1732065398675,4.00284,3110.1,3109.1,0.06432613]
[1732065398880,3.21512,3110.3,3109.1,1.14811608]
[1732065399087,3.21512,3110.3,3109.2,0.8128]
[1732065399303,3.21534,3110.1,3109.3,0.7939]
[1732065399789,3.21512,3110.3,3109.3,0.7939]
[1732065399945,3.21524,3110.2,3109.3,0.7939]
[1732065400905,0.7875,3110.5,3109.3,0.7939]
[1732065400906,3.21509,3110.4,3109.3,0.7939]
[1732065401392,3.21514,3110.3,3109.3,0.7939]
[1732065401992,4.402695,3110.5,3109.3,0.7939]
[1732065402149,3.21482,3110.6,3109.3,0.39428961]
[1732065402348,3.21471,3110.7,3109.4,0.89780745]
[1732065402558,3.21462,3110.8,3109.5,0.95664131]
[1732065402775,3.21472,3110.7,3109.6,0.03959193]
[1732065402990,3.21472,3110.7,3109.7,0.7939]
[1732065403488,0.7639,3111.1,3109.9,0.7939]
[1732065403698,3.21415,3111.3,3109.9,0.7939]
[1732065403699,3.21504,3110.4,3109.9,0.7939]
[1732065403854,3.21516,3110.3,3110.0,0.03955888]
[1732065404196,3.21516,3110.3,3109.4,0.33470064]
[1732065404197,3.21529,3110.2,3109.5,0.7939]
[1732065404351,3.21529,3110.2,3109.6,0.03955983]
[1732065405450,3.2154,3110.1,3109.6,0.03955983]
[1732065406386,3.21529,3110.2,3109.6,0.03955983]
[1732065406797,3.21529,3110.2,3109.5,0.7939]
[1732065407083,3.21534,3110.1,3109.6,0.03960421]
[1732065407502,3.21534,3110.1,3109.5,0.7939]
[1732065407684,3.21529,3110.2,3109.5,0.7939]
[1732065407989,6.22415,3111.3,3109.7,0.7939]
[1732065407990,0.7639,3110.9,3109.7,0.7939]
[1732065408161,3.21461,3110.8,3109.7,0.7939]
[1732065408502,3.21457,3110.9,3109.8,0.83349854]
[1732065408653,3.21461,3110.8,3109.8,0.83349854]
[1732065409206,3.21472,3110.7,3109.9,0.03958343]
[1732065409488,3.21472,3110.7,3109.9,0.7939]
[1732065410042,3.21472,3110.7,3110.0,0.03958343]
[1732065410556,0.719279,3110.9,3110.1,0.7939]
[1732065410703,3.0,3111.0,3110.1,0.7939]
[1732065410902,3.21446,3111.0,3110.1,0.7939]
[1732065411159,3.21446,3111.0,3110.2,0.03949562]
[1732065411456,3.21446,3111.0,3110.3,0.03949562]
[1732065411753,3.857339,3111.0,3110.3,0.03949562]
[1732065411902,3.857339,3111.0,3110.1,0.7939]
[1732065412344,3.21455,3110.9,3110.2,0.0394909]
[1732065412549,3.21455,3110.9,3110.1,0.7939]
[1732065413047,3.21473,3110.7,3110.2,0.03947863]
[1732065413236,3.2145,3110.9,3110.2,0.03947863]
[1732065413847,3.2145,3110.9,3110.1,0.7939]
[1732065414046,3.21484,3110.6,3110.1,0.7939]
[1732065414456,3.21494,3110.5,3110.1,0.7939]
[1732065415043,3.21484,3110.6,3110.1,0.7939]
[1732065415248,3.21463,3110.8,3110.1,0.7939]
[1732065415541,3.21463,3110.8,3110.2,0.03950034]
[1732065415705,3.21463,3110.8,3110.1,0.7939]
[1732065416139,3.857535,3110.8,3110.2,0.03950034]
[1732065416638,0.642905,3110.8,3110.1,0.7939]
[1732065416844,6.42888,3111.0,3110.1,0.7939]
[1732065417016,3.21442,3111.0,3110.2,0.03948335]
[1732065417236,3.21442,3111.0,3110.1,0.7939]
[1732065417564,3.2145,3110.9,3110.1,0.7939]
[1732065417775,3.857392,3110.9,3110.1,0.7939]
[1732065417924,3.857392,3110.9,3110.2,0.03948335]
[1732065418121,3.857392,3110.9,3110.1,0.7939]
[1732065418451,3.857392,3110.9,3110.2,0.03948335]
[1732065418939,3.857392,3110.9,3110.1,0.7939]
[1732065419363,3.857392,3110.9,3110.2,0.03948335]
[1732065419540,3.857392,3110.9,3110.1,0.7939]
[1732065419732,3.857392,3110.9,3110.2,0.03948335]
[1732065419937,3.857392,3110.9,3110.3,0.772]
[1732065420961,3.6004392,3110.8,3110.3,0.772]
[1732065421367,0.3857392,3110.8,3110.3,0.772]
[1732065421576,3.6003492,3110.8,3110.3,0.772]
[1732065421867,3.21433,3111.1,3110.3,0.772]
[1732065421868,6.21447,3111.0,3110.3,0.772]
[1732065422172,3.21451,3110.9,3110.3,0.772]
[1732065422572,0.755,3111.2,3110.3,0.772]
[1732065422732,0.4591495,3111.2,3110.4,0.03948335]
[1732065422931,3.21419,3111.3,3110.5,0.39428961]
[1732065423248,3.21419,3111.3,3110.6,0.8114692]
[1732065423441,7.152927,3111.3,3110.6,0.8114692]
[1732065423672,3.21422,3111.2,3110.6,0.8114692]
[1732065425891,3.21422,3111.2,3110.6,0.772]
[1732065426388,3.21422,3111.2,3110.7,0.03942956]
[1732065426564,3.21422,3111.2,3110.6,0.772]
[1732065426892,0.642824,3111.2,3110.7,0.03942956]
[1732065427200,0.8175,3111.3,3110.6,0.772]
[1732065427201,6.42898,3111.0,3110.6,0.772]
[1732065427486,3.857408,3110.9,3110.7,0.03942578]
[1732065427689,3.857408,3110.9,3110.7,0.36032578]
[1732065427854,3.857408,3110.9,3110.6,0.772]
[1732065428198,3.857408,3110.9,3110.4,0.772]
[1732065428551,3.21466,3110.8,3110.4,0.772]
[1732065429657,3.21473,3110.7,3110.4,0.772]
[1732065429855,3.21466,3110.8,3110.4,0.772]
[1732065432415,6.42888,3111.0,3110.4,0.772]